Workbook

Sheet Instructions
A1: Instructions for Use:
B2: Applicants should enter data in cells shaded green and provide descriptions in place of the text formatted in blue. The numbers that are currently entered in the example cells are simply illustrative and should not be used as is. Applicant may manipulate spreadsheet to incorporate pertinent information not included in this standard form. If additional lines are inserted, make sure the totals include the inserted cells.
A5: Assumptions:
B6: Inflation Rate: | C6: Fixed at 2.4% (Line 41)
B7: Interest Rate on Debt: | C7: Fixed at 8% (Line 197)
B8: Term of Loan: | C8: 15 years (Line 198)
B9: Product Pricing: | C9: 2.5 cents per 1000 BTU, low heating value, 2009 dollars (Lines 44-47)
A11: Clarifications:
B12: Line 32 - "Other Consumed"
C13: Include any other sources of energy in the plant, this should also include any coal, biomass, lignin, or syngas slipstreams. Insert additional lines for each source as necessary. To assign a value, if biomass feedstock is used in a direct fire boiler, use the same price/unit that is shown in "Feedstock Pricing." If lignin (or another potential waste product) is used, this could be shown as a credit equal to the cost that would be incurred to dispose of the waste. For syngas or other slipstreams, base the value on the foregone income that would be realized if the stream were directed to the final product.
B15: Line 37 - "Other Wastes"
C16: Include any ash, wastewater sludge, or any other waste streams that will need to be disposed of. In this section, report in tons/year.
B18: Line 60 - "Other Consumed"
C19: Include costs for all sources that were added in Line 32 - "Other Consumed." In this section, report in $/unit.
B21: Feedstock Costs
C22: This should include any expenses incurred in processing (chipping, grinding) the feedstock into a form that can be fed into the reactor. For MSW, do not include the cost of transportation of the bulk material or separation/segration costs. Processing costs for MSW are restricted to post-sorted materials.
B24: Miscellaneous Process Supplies
C25: Examples of expenses to include in this section include (but are not limited to): chemicals such as wastewater treatment consumables, catalyst and catalyst regeneration expenses, and fermenting organisms
B27: IP Fees
C28: Account for any IP fees or royalties related to the project. State the basis for calculating the expense, for example, annual flat-rate, as a percentage of revenue or other.

Sheet Pro Forma
A1: Appendix H: Cash Flow Pro-Forma DE-FOA-0002396
A2: FY21 BETO Scale-up and Conversion FOA DE-FOA-0002396 | F2: Name of Company | I2: Company Name Here
A3: Generic Pro-Forma | F3: Name of Facility | I3: Facility Name Here
F4: Commercial Operation Date | I4: Date Here
F5: Facility Capitalized Construction Cost | I5: 99000000
A8: Projected Operating Results
A10: Federal Fiscal Year Ending September 30, | F10: Example | G10: 2022 | H10: =G10+1 -> 2023 | I10: 2024 | J10: 2025 | K10: 2026 | L10: 2027 | M10: 2028 | N10: 2029 | O10: 2030
A12: PERFORMANCE
B13: Plant Operating Days | F13: 350
B14: Plant Availability Factor | F14: =F13/365 -> 0.9589041096
B16: Production | E16: Units(1)
B17: #1 | C17: Product Number One Name Here | E17: XX/year | F17: 1000
B18: #2 | C18: Product Number Two Name Here | E18: XX/year | F18: 1000
B19: #3 | C19: Product Number Three Name Here | E19: XX/year | F19: 1000
B20: #4 | C20: Product Number Four Name Here | E20: XX/year | F20: 1000
B22: Feedstock Consumption | E22: Units(1)
B23: A | C23: Feedstock Number One Name Here | E23: XX/year | F23: 1000
B24: B | C24: Feedstock Number Two Name Here | E24: XX/year | F24: 1000
B25: C | C25: Feedstock Number Three Name Here | E25: XX/year | F25: 1000
B26: D | C26: Feedstock Number Four Name Here | E26: XX/year | F26: 1000
B27: E | C27: Feedstock Number Five Name Here | E27: XX/year | F27: 1000
B29: Utility Consumption
C30: Natural Gas Consumed | E30: MMBTU | F30: 1000
C31: Net Electricity Consumed | E31: MWh | F31: 1000
C32: Water Consumed | E32: kGal | F32: 1000
C33: Other Consumed | E33: XX | F33: 1000
B35: Facility Emissions & Wastes
C36: SO2 | E36: tons/yr | F36: 1000
C37: NOx | E37: tons/yr | F37: 1000
C38: Other Wastes | E38: tons/yr | F38: 1000
A40: COMMODITY PRICES
B42: General Inflation | F42: 0.024
B44: Product Pricing | E44: Units(1)
B45: #1 | C45: Product Number One Name Here | E45: $/XX | F45: 1
B46: #2 | C46: Product Number Two Name Here | E46: $/XX | F46: 1
B47: #3 | C47: Product Number Three Name Here | E47: $/XX | F47: 1
B48: #4 | C48: Product Number Four Name Here | E48: $/XX | F48: 1
B50: Feedstock Pricing | E50: Units(1)
B51: A | C51: Feedstock Number One Name Here | E51: $/XX | F51: 1
B52: B | C52: Feedstock Number Two Name Here | E52: $/XX | F52: 1
B53: C | C53: Feedstock Number Three Name Here | E53: $/XX | F53: 1
B54: D | C54: Feedstock Number Four Name Here | E54: $/XX | F54: 1
B55: E | C55: Feedstock Number Five Name Here | E55: $/XX | F55: 1
B57: Utility Consumption
C58: Natural Gas Consumed | E58: $/MMBTU | F58: 10.49
C59: Net Electricity Consumed | E59: $/MWh | F59: 54.53
C60: Water Consumed | E60: $/kGal | F60: 1.25
C61: Other Consumed | E61: $/XX | F61: 1
B63: Emmissions & Waste Allowances
C64: SO2 | E64: $/ton | F64: 1
C65: NOx | E65: $/ton | F65: 1
C66: Other Wastes | E66: $/ton | F66: 1
A68: OPERATING REVENUES
B69: Product Revenues
B70: #1 | C70: Product Number One Name Here | F70: =F17*F45 -> 1000
B71: #2 | C71: Product Number Two Name Here | F71: =F18*F46 -> 1000
B72: #3 | C72: Product Number Three Name Here | F72: =F19*F47 -> 1000
B73: #4 | C73: Product Number Four Name Here | F73: =F20*F48 -> 1000
B75: TOTAL OPERATING REVENUES | F75: =SUM(F70:F73) -> 4000
A77: OPERATING EXPENSES
B78: Variable Operating Costs
C80: Feedstock Costs
C81: A - Feedstock Number One Name Here | F81: =F23*F51 -> 1000
C82: B - Feedstock Number Two Name Here | F82: =F24*F52 -> 1000
C83: C - Feedstock Number Three Name Here | F83: =F25*F53 -> 1000
C84: D - Feedstock Number Four Name Here | F84: =F26*F54 -> 1000
C85: E - Feedstock Number Five Name Here | F85: =F27*F55 -> 1000
C87: Total Feedstock Costs | F87: =SUM(F81:F85) -> 5000
C89: Utility Costs
C90: Natural Gas Consumed | F90: =F58*F30 -> 10490
C91: Net Electricity Consumed | F91: =F59*F31 -> 54530
C92: Water Consumed | F92: =F60*F32 -> 1250
C93: Other Consumed | F93: 1000
C95: Total Utility Costs | F95: =SUM(F90:F93) -> 67270
C97: Emissions & Waste Allowance Costs
C98: SO2 | F98: =F36*F64 -> 1000
C99: NOx | F99: =F37*F65 -> 1000
C100: Other Wastes | F100: 1000
C102: Total Emissions Allowance Costs | F102: =SUM(F98:F100) -> 3000
C104: Product Transportation Pricing
C105: #1 - Product Number One Name | E105: $/XX | F105: 1
C106: #2 - Product Number Two Name | E106: $/XX | F106: 1
C107: #3 - Product Number Three Name | E107: $/XX | F107: 1
C108: #4 - Product Number Four Name | E108: $/XX | F108: 1
C110: Product Transportation Cost
C111: #1 - Product Number One Name | F111: =F105*F17 -> 1000
C112: #2 - Product Number Two Name | F112: =F106*F18 -> 1000
C113: #3 - Product Number Three Name | F113: =F107*F19 -> 1000
C114: #4 - Product Number Four Name | F114: =F108*F20 -> 1000
C116: Total Product Transportation Cost | F116: =SUM(F111:F114) -> 4000
C118: Feedstock Transportation Pricing
C119: A - Feedstock Number One Name | E119: $/XX | F119: 1
C120: B - Feedstock Number Two Name | E120: $/XX | F120: 1
C121: C - Feedstock Number Three Name | E121: $/XX | F121: 1
C122: D - Feedstock Number Four Name | E122: $/XX | F122: 1
C123: E - Feedstock Number Five Name | E123: $/XX | F123: 1
C125: Feedstock Transportation Cost
C126: A - Feedstock Number One Name | F126: =F119*F23 -> 1000
C127: B - Feedstock Number Two Name | F127: =F120*F24 -> 1000
C128: C - Feedstock Number Three Name | F128: =F121*F25 -> 1000
C129: D - Feedstock Number Four Name | F129: =F122*F26 -> 1000
C130: E - Feedstock Number Five Name | F130: =F123*F27 -> 1000
C132: Total Feedstock Transportation Cost | F132: =SUM(F126:F130) -> 5000
C134: Product Marketing Pricing
C135: #1 - Product Number One Name | E135: % of Revenue | F135: 0.01
C136: #2 - Product Number Two Name | E136: % of Revenue | F136: 0.02
C137: #3 - Product Number Three Name | E137: % of Revenue | F137: 0.03
C138: #4 - Product Number Four Name | E138: % of Revenue | F138: 0.04
C140: Product Marketing Cost
C141: #1 - Product Number One Name | F141: =F135*F70 -> 10
C142: #2 - Product Number Two Name | F142: =F136*F71 -> 20
C143: #3 - Product Number Three Name | F143: =F137*F72 -> 30
C144: #4 - Product Number Four Name | F144: =F138*F73 -> 40
C146: Total Product Marketing Cost | F146: =SUM(F141:F144) -> 100
C148: Miscellaneous Process Supplies
C149: Z - Misc Number One Name | F149: 1000
C150: Y - Misc Number Two Name | F150: 1000
C151: X - Misc Number Three Name | F151: 1000
C152: W - Misc Number Four Name | F152: 1000
C153: V - Misc Number Five Name | F153: 1000
C155: Total Miscellaneous Supplies Cost | F155: =SUM(F149:F153) -> 5000
C157: Total Variable Operating Costs | F157: =F87+F95+F102+F116+F132+F146+F155 -> 89370
B159: Fixed Operating Costs
C160: Payroll & Benefits | E160: % of Revenue | F160: 0.3
F161: =F160*F75 -> 1200
C162: Fixed Operating Expenses | E162: % of Revenue | F162: 0.01
F163: =F162*F75 -> 40
C164: Annual Maintenance | E164: % of Capex | F164: 0.025
F165: =F164*$I$5 -> 2475000
C167: Total Fixed Operating Costs | F167: =F161+F163+F165 -> 2476240
B169: General & Administrative
C170: Corporate Overhead | E170: % of Revenue | F170: 0.08
F171: =F170*F87 -> 400
C172: Insurance | E172: % of Capex | F172: 0.02
F173: =F172*$I$5 -> 1980000
C174: Property Tax | E174: % of Capex | F174: 0.04
F175: =F174*$I$5 -> 3960000
C176: Management Fees | E176: % of Revenue | F176: 0.04
F177: =F176*F75 -> 160
C178: IP Fees | E178: % of X | F178: %
C181: Total G&A Expenses | F181: =F171+F173+F175+F177+F179 -> 5940560
B183: Contingency
C184: Contingency | E184: % of O&M, G&A | F184: 0.05
F185: =(F181+F167)*F184 -> 420840
C187: Total Contingency | F187: =F177+F181+F183+F185 -> 6361560
B189: TOTAL OPERATING EXPENSES | F189: =F157+F167+F181+F187 -> 14867730
A191: NET OPERATING REVENUES | F191: =F75-F189 -> -14863730
A193: DEBT SERVICE
B194: Capitalized Construction Cost (from top of sheet) | F194: =I5 -> 99000000
B195: Equity Contribution | F195: 29000000
B196: Total Debt Financing | F196: =F194-F195 -> 70000000
B198: Interest Rate on Debt | E198: Annual % | F198: 0.08
B199: Term of Loan | E199: Years | F199: 15
B200: Monthly Payment on Loan | F200: =PMT(F198/12,F199*12,F196) -> -668956.459
B202: ANNUAL DEBT SERVICE | F202: =$F$200*12 -> -8027477.508
A204: NET REVENUES | F204: =F191+F202 -> -22891207.51
A206: Notes:
A207: (1) Units should be converted to match between Performance and Pricing sections
A208: (2) Text in Blue should be modified to match applicants names, products, units, etc.
A209: (3) Grouped rows, for example product transportation pricing, may be rolled up after data entry to simplify pro-forma output
A210: (4) Applicant may manipulate spreadsheet to incorporate pertinent information not included in the standard form
